bitfinex-derivatives/quotes_ETHF0:USTF0_20250926
["timestamp","ask_amount","ask_price","bid_price","bid_amount"]
[1758847936159,0.1401,3901.6,3899.7,0.45]
[1758847936460,0.3343,3901.5,3900.6,0.3195]
[1758847936659,0.1401,3902.5,3900.7,0.089]
[1758847936660,0.3343,3902.0,3900.7,0.089]
[1758847937459,0.79533,3902.0,3901.0,0.46114]
[1758847937955,0.79533,3902.0,3900.7,0.089]
[1758847937956,0.3343,3902.0,3900.7,0.089]
[1758847938261,0.3343,3902.7,3901.7,0.3195]
[1758847938660,0.3343,3902.7,3901.8,0.46104]
[1758847938858,0.1401,3903.2,3901.7,0.3195]
[1758847939058,0.3343,3903.2,3902.3,0.46098]
[1758847939251,0.7952,3903.2,3902.3,0.3195]
[1758847939452,0.3343,3903.2,3902.3,0.3195]
[1758847939750,0.46099,3902.4,3901.9,40.8]
[1758847940061,0.46101,3902.2,3901.0,0.6385]
[1758847940257,0.3343,3902.1,3901.0,0.3195]
[1758847940454,0.46108,3901.7,3901.0,0.3195]
[1758847940755,0.3343,3902.1,3901.0,0.3195]
[1758847941060,0.79533,3902.1,3901.0,0.3195]
[1758847941256,0.3343,3904.4,3901.6,0.3195]
[1758847941557,12.80792,3905.3,3901.6,0.3195]
[1758847941558,1.82992077,3906.2,3905.6,0.3195]
[1758847941855,1.82992077,3906.2,3904.6,0.1305]
[1758847941856,0.3343,3906.1,3904.6,0.3195]
[1758847942058,0.3343,3905.5,3903.2,0.3195]
[1758847942252,0.3343,3904.5,3903.2,0.6395]
[1758847942454,0.3343,3905.7,3903.2,0.4505]
[1758847942759,0.3343,3905.7,3903.8,0.3195]
[1758847943059,0.3343,3904.9,3903.8,0.3195]
[1758847943561,0.3343,3904.9,3903.9,0.46081]
[1758847943861,0.04457992,3905.9,3903.7,0.078]
[1758847943862,0.3343,3905.8,3904.4,0.46075]
[1758847944162,0.0214,3904.8,3904.7,0.3195]
[1758847944652,0.3343,3906.6,3905.5,0.46061]
[1758847945161,0.3343,3906.6,3904.5,0.321]
[1758847945162,0.3343,3906.6,3905.4,0.46062]
[1758847945454,0.3343,3906.6,3905.8,0.46057]
[1758847945753,0.048,3907.2,3905.6,0.094]
[1758847945961,0.3343,3907.3,3906.0,0.3195]
[1758847946256,0.3343,3907.3,3905.9,0.46056]
[1758847946454,0.79471,3907.3,3905.9,0.46056]
[1758847946649,0.46043,3907.1,3905.8,0.88808]
[1758847947160,0.3343,3907.3,3905.9,0.46057]
[1758847947362,0.46042,3907.2,3905.8,0.4275]
[1758847947554,0.46042,3907.2,3905.8,0.88808]
[1758847948260,0.3343,3906.9,3905.8,0.3195]
[1758847948564,0.3343,3906.9,3905.8,1.10008]
[1758847948767,0.17346661,3907.4,3905.8,1.10008]
[1758847949058,0.168,3907.9,3905.8,1.10008]
[1758847949059,0.022,3907.9,3907.2,0.46041]
[1758847949262,0.022,3907.9,3907.4,0.46039]
[1758847949457,0.022,3907.9,3907.6,0.3195]
[1758847949661,0.022,3907.9,3907.6,0.77987]
[1758847949858,0.022,3907.9,3907.8,0.46035]
[1758847950053,0.022,3907.9,3907.8,0.3248]
[1758847950661,0.022,3907.9,3907.6,0.6438]
[1758847950966,0.022,3907.9,3907.7,0.78516]
[1758847951870,0.25,3909.4,3908.4,0.46027]
[1758847952166,0.25,3909.4,3908.2,0.7851]
[1758847952376,0.3407,3909.3,3908.2,0.181]
[1758847952864,0.3407,3909.3,3908.4,0.46027]
[1758847953072,0.3407,3909.3,3908.1,0.6428]
[1758847953262,0.46018,3909.2,3908.1,0.3248]
[1758847953664,0.3407,3909.3,3908.1,0.3248]
[1758847953862,0.3407,3909.3,3908.1,0.78511]
[1758847954059,0.3407,3909.3,3908.1,0.3248]
[1758847954260,0.3407,3909.3,3907.6,40.8]
[1758847954261,0.1378,3908.8,3907.6,40.8]
[1758847954466,0.80102,3908.0,3907.1,39.941]
[1758847954765,0.3407,3908.7,3907.2,0.78522]
[1758847954966,0.46028,3908.5,3907.2,0.3248]
[1758847955368,0.80094,3908.7,3907.3,0.4604]
[1758847955666,0.80094,3908.7,3907.6,0.46036]
[1758847955667,0.3407,3908.7,3907.6,0.46036]
[1758847955876,0.3407,3908.7,3907.2,0.3248]
[1758847955877,0.46026,3908.6,3907.2,0.3248]
[1758847956169,0.1378,3908.8,3906.9,41.117]
[1758847956170,0.1378,3908.8,3906.9,40.8]
[1758847956366,0.4603,3908.3,3907.0,0.317]
[1758847956566,0.3407,3907.8,3907.0,0.316]
[1758847957075,0.3407,3907.8,3906.9,0.316]
[1758847957471,0.8011,3907.4,3906.8,40.8]
[1758847957680,0.8011,3907.4,3906.3,0.316]
[1758847957681,0.3407,3907.4,3906.3,0.316]
[1758847957971,0.3407,3907.4,3906.2,0.3248]
[1758847958270,0.3407,3907.4,3906.3,0.055]
[1758847958271,0.46043,3907.2,3906.3,0.055]
[1758847958470,0.4785,3907.4,3906.2,0.78533]
[1758847958663,0.9389,3907.4,3906.4,0.46051]
[1758847958872,0.4785,3907.4,3906.2,0.3248]
[1758847959062,0.9389,3907.4,3906.2,0.6408]
[1758847959267,0.4785,3907.4,3906.2,0.6408]
[1758847959467,0.4785,3907.4,3906.5,0.46049]
[1758847959971,0.5907,3907.4,3906.5,0.46049]
[1758847960279,0.5907,3907.4,3905.7,40.8]
[1758847960280,0.3407,3907.0,3905.9,0.46057]
[1758847960479,0.3407,3907.0,3905.9,0.3248]
[1758847960673,0.80114,3907.0,3906.0,0.46056]
[1758847960977,0.3407,3906.5,3905.4,40.8]
[1758847961270,0.3407,3906.5,3905.6,0.3248]
[1758847961475,0.3407,3907.3,3906.0,0.4557]
[1758847961664,0.3878,3907.4,3906.4,0.3248]
[1758847961865,0.3407,3907.2,3906.0,0.46055]
[1758847962068,0.46044,3907.0,3906.1,0.315]
[1758847962269,0.46051,3906.5,3905.4,41.1248]
[1758847962471,1.5388,3907.4,3905.5,0.46061]
[1758847962472,0.3407,3906.4,3905.5,0.46061]
[1758847962873,0.3407,3906.4,3905.4,41.1248]
[1758847963278,0.46055,3906.2,3905.4,0.3248]
[1758847963471,0.4606,3905.7,3904.3,0.78556]
[1758847963676,0.46062,3905.5,3904.4,0.314]
[1758847964270,0.46066,3905.2,3904.3,0.3248]
[1758847964474,0.3407,3905.9,3904.0,0.264]
[1758847964679,0.3407,3905.5,3903.6,0.3248]
[1758847964882,0.1378,3905.4,3903.7,0.52482]
[1758847965075,0.3407,3905.3,3903.7,0.52482]
[1758847965278,0.3407,3905.3,3903.7,0.52483]
[1758847965481,0.1378,3905.4,3903.7,0.52483]
[1758847965482,0.3407,3904.9,3903.7,0.064]
[1758847965773,0.3407,3904.9,3902.9,39.9576223]
[1758847965774,0.3407,3904.7,3903.0,0.3248]
[1758847965970,0.3407,3906.7,3904.0,3.54844398]
[1758847966170,0.80119,3906.6,3905.2,0.3248]
[1758847966375,0.46055,3906.2,3905.3,0.313]
[1758847966580,0.3407,3906.1,3905.3,0.313]
[1758847966879,0.1378,3906.7,3905.5,0.46062]
[1758847966880,0.3407,3906.6,3905.5,0.46062]
[1758847967073,0.3407,3906.6,3905.2,0.313]
[1758847967074,0.3407,3906.6,3905.9,0.46056]
[1758847967267,0.3407,3906.6,3905.8,0.46057]
[1758847967467,0.3407,3906.6,3905.7,0.3248]
[1758847967468,0.3555,3906.6,3906.0,0.46056]
[1758847967882,0.3555,3906.6,3905.8,0.46058]
[1758847968077,0.3555,3906.6,3905.7,0.3248]
[1758847968273,0.3555,3906.6,3906.1,0.46054]
[1758847968582,0.3407,3906.5,3905.8,0.313]
[1758847968880,0.0148,3906.6,3905.8,0.313]
[1758847969084,0.0148,3906.6,3906.0,0.46055]
[1758847969274,0.0148,3906.6,3905.8,0.77358]
[1758847969584,0.0148,3906.6,3906.0,0.46055]
[1758847969974,0.0148,3906.6,3905.7,0.46058]
[1758847970175,0.0148,3906.6,3905.8,0.46057]
[1758847970374,0.0148,3906.6,3905.7,0.116]
[1758847970375,0.0148,3906.6,3906.2,0.46053]
[1758847970571,0.0148,3906.6,3905.7,0.57658]
[1758847970880,0.0148,3906.6,3906.2,0.46053]
[1758847971078,0.0148,3906.6,3906.3,0.3248]
[1758847971885,0.0148,3906.6,3905.7,0.116]
[1758847971886,0.3407,3909.0,3907.3,0.3248]
[1758847972175,0.45996,3911.1,3909.3,0.3248]
[1758847972369,0.1378,3911.4,3909.3,0.3248]
[1758847972569,3.36,3911.4,3910.3,0.3248]
[1758847972880,0.1378,3912.0,3910.6,0.46001]
[1758847973067,0.59766,3912.0,3910.4,41.115]
[1758847973270,0.59766,3912.0,3910.5,0.316]
[1758847973984,0.3407,3911.7,3910.5,0.316]
[1758847974281,0.45991,3911.5,3910.5,0.316]
[1758847974472,0.45998,3910.9,3910.2,40.8]
[1758847974674,0.46001,3910.7,3909.8,0.315]
[1758847974973,0.46001,3910.7,3909.6,0.3248]
[1758847975174,0.4785,3910.4,3909.0,0.113]
[1758847975380,0.46005,3910.3,3909.0,0.113]
[1758847975580,0.4785,3910.4,3909.1,0.315]
[1758847975782,0.46012,3909.8,3908.9,0.3248]
[1758847975979,3.7985,3910.4,3908.8,0.315]
[1758847975980,0.46013,3909.6,3908.8,0.315]
[1758847976173,0.3407,3909.7,3908.4,40.8]
[1758847976375,0.46003,3910.5,3909.3,0.3248]
[1758847976583,11.63425,3912.0,3908.8,0.1309]
[1758847976584,1.82992077,3912.1,3911.3,0.45993]
[1758847976783,0.4785,3912.8,3911.5,0.3248]
[1758847976784,0.3407,3912.8,3911.5,0.3248]
[1758847976979,0.3407,3912.8,3911.5,0.78471]
[1758847977176,0.3407,3912.8,3911.5,0.6428]
[1758847977389,0.3407,3912.8,3911.6,0.4599]
[1758847977583,0.3407,3912.8,3911.5,0.6428]
[1758847977787,0.3407,3912.8,3912.1,0.45984]
[1758847978282,0.3407,3912.8,3911.9,0.45986]
[1758847978477,0.3407,3912.8,3911.5,0.6428]
[1758847978778,0.3407,3912.8,3911.6,0.45989]
[1758847978971,0.3407,3912.8,3911.8,0.45987]
[1758847979175,0.3407,3912.8,3911.5,1.1027]
[1758847979371,0.3407,3912.8,3911.7,0.45988]
[1758847979585,0.3407,3912.8,3911.5,0.3248]
[1758847979785,0.3407,3912.8,3911.5,0.6418]
[1758847980287,0.3407,3912.8,3911.5,1.10171]
[1758847980484,0.3407,3912.8,3911.5,0.3248]
[1758847980788,0.3379,3913.5,3912.3,0.45981]
[1758847981085,1.6979,3913.5,3912.3,0.45981]
[1758847981489,2.15758,3913.5,3912.0,0.91764]
[1758847981683,0.3379,3913.5,3912.0,0.4578]
[1758847981986,0.45969,3913.4,3912.0,0.79664]
[1758847982184,0.3379,3913.5,3912.4,0.45981]
[1758847982377,0.79758,3913.5,3912.1,0.12]
[1758847982580,0.45973,3913.1,3911.3,0.3368]
[1758847982884,0.3379,3912.3,3911.2,0.45994]
[1758847983479,0.3379,3912.3,3911.4,0.45992]
[1758847983676,0.3214,3911.8,3909.1,12.65536]
[1758847983880,0.3214,3911.8,3910.7,0.46]
[1758847984079,0.3214,3911.8,3910.8,0.3352]
[1758847984686,0.3214,3911.2,3910.0,0.3352]
[1758847984886,0.3214,3911.2,3910.2,0.46006]
[1758847985083,0.3214,3911.2,3910.0,0.3352]
[1758847985288,0.78138,3911.0,3910.0,0.3352]
[1758847985589,0.78138,3911.0,3909.5,0.3352]
[1758847985590,0.45999,3910.8,3909.5,0.3352]
[1758847985895,4.59,3910.8,3909.2,0.46018]
[1758847986096,0.1272,3910.9,3910.1,0.46007]
[1758847986304,0.3214,3911.0,3909.9,0.3352]
[1758847986487,0.3214,3911.0,3910.3,0.46004]
[1758847986786,0.1272,3911.6,3910.5,0.46002]
[1758847986989,0.78131,3911.5,3910.2,0.46005]
[1758847987189,0.3214,3911.1,3909.9,0.3352]
[1758847987494,0.78137,3911.1,3909.9,0.3352]
[1758847987688,0.3214,3910.3,3909.3,0.46017]
[1758847987989,5.8914,3910.3,3909.3,0.46016]
[1758847988290,0.3214,3909.9,3909.0,0.3352]
[1758847988795,0.3214,3909.9,3908.0,41.17302]
[1758847988796,0.3214,3909.9,3908.5,40.8]
[1758847988981,0.46011,3909.8,3908.7,0.46024]
[1758847989187,0.46013,3909.7,3908.4,0.79547]
[1758847989382,0.46013,3909.7,3908.1,0.4603]
[1758847989383,0.46018,3909.2,3908.1,0.4603]
[1758847989589,0.3214,3909.3,3907.9,0.3352]
[1758847989782,0.7816,3909.1,3907.9,0.6492]
[1758847989988,0.3214,3909.1,3908.3,0.46028]
[1758847990186,0.3214,3909.1,3907.9,0.3352]
[1758847990392,0.3214,3909.1,3907.4,0.1282]
[1758847990393,0.1272,3908.8,3907.4,0.46038]
[1758847990696,0.3214,3908.5,3907.3,0.3352]
[1758847990988,0.3214,3908.5,3907.7,0.46035]
[1758847991192,0.3214,3908.5,3907.7,0.46036]
[1758847991990,0.3214,3908.5,3907.3,0.3352]
[1758847992193,0.3214,3908.5,3907.7,0.46035]
[1758847992394,0.3214,3908.5,3907.3,0.6482]
[1758847992589,0.1272,3909.5,3907.5,0.3352]
[1758847992590,0.3214,3909.2,3907.5,0.3352]
[1758847992795,0.3214,3909.2,3908.3,0.46028]
[1758847993491,0.3214,3909.2,3908.1,0.3352]
[1758847993690,0.46023,3908.9,3908.1,0.3352]
[1758847993887,0.1272,3908.8,3907.5,0.3352]
[1758847994089,0.1272,3908.8,3906.8,0.3902]
[1758847994090,0.46035,3907.8,3906.8,0.3902]
[1758847994285,0.46037,3907.7,3906.8,0.3352]
[1758847994482,0.46038,3907.5,3906.8,0.3352]
[1758847994887,0.7818,3907.4,3906.2,0.46053]
[1758847995498,0.46041,3907.3,3906.2,0.46053]
[1758847995698,0.3214,3907.4,3906.1,0.4812]
[1758847995699,0.3214,3907.4,3906.1,0.3352]
[1758847995996,0.3214,3907.4,3906.0,0.1282]
[1758847995997,0.3214,3908.3,3907.3,0.46039]
[1758847996591,0.3214,3908.3,3907.6,0.46036]
[1758847997091,0.3214,3908.3,3907.5,0.3352]
[1758847997495,0.1272,3908.8,3907.8,0.46034]
[1758847997692,0.46019,3909.1,3907.9,0.46033]
[1758847997894,0.46021,3909.0,3908.0,0.3352]
[1758847998495,1.46125,3909.9,3908.0,0.3352]
[1758847998496,0.46023,3908.8,3908.0,0.3352]
[1758847998694,0.3214,3908.9,3907.5,0.3352]
[1758847998901,0.46026,3908.6,3907.5,0.3352]
[1758847999198,0.78169,3908.4,3907.5,0.3352]
[1758847999397,0.3214,3908.4,3907.5,0.3352]
[1758847999598,0.3214,3908.4,3907.6,0.46036]
[1758847999801,0.3214,3908.4,3907.5,0.3352]
[1758847999990,0.46023,3908.8,3907.5,0.3352]
[1758848000191,0.46024,3908.8,3907.5,0.3352]
[1758848000597,0.3214,3908.9,3907.5,0.3352]
[1758848000792,0.46026,3908.6,3907.5,0.3352]
[1758848000994,0.3214,3908.5,3906.8,0.3352]
[1758848001191,0.3214,3908.5,3906.9,0.31]
[1758848001392,0.3214,3908.5,3907.0,0.3352]
[1758848001592,0.3214,3908.5,3907.0,0.46043]
[1758848001802,1.27758,3909.5,3907.1,0.3352]
[1758848001803,0.78161,3909.0,3907.1,0.3352]
[1758848002503,0.46023,3908.9,3907.5,0.3352]
[1758848002702,0.46023,3908.9,3907.7,0.3352]
[1758848003100,0.46024,3908.8,3907.7,0.3352]
[1758848003295,0.3214,3909.0,3907.7,0.3352]
[1758848003296,0.46026,3908.6,3907.7,0.3352]
[1758848003496,0.1272,3909.5,3906.8,0.79565]
[1758848003497,0.46031,3908.2,3906.8,0.79565]
[1758848003703,0.46031,3908.1,3906.8,0.3352]
[1758848003896,0.46031,3908.1,3906.9,0.31]
[1758848004099,0.46029,3908.3,3907.0,0.31]
[1758848004403,0.3214,3908.5,3907.4,0.79558]
[1758848004603,0.46019,3909.2,3907.9,0.46033]
[1758848004807,0.46019,3909.2,3908.0,0.6452]
[1758848005003,0.3214,3909.4,3908.0,0.6452]
[1758848005004,0.4602,3909.1,3908.0,0.6452]
[1758848005306,0.46027,3908.5,3907.7,0.184]
[1758848005505,0.46028,3908.4,3907.4,0.3352]
[1758848005706,0.46029,3908.3,3907.4,0.6442]
[1758848005900,0.3214,3908.8,3907.4,0.6442]
[1758848005901,0.46027,3908.5,3907.4,0.6442]
[1758848006203,0.3214,3908.8,3907.4,0.3352]
[1758848006409,0.4603,3908.2,3907.4,0.6442]
[1758848006797,0.78164,3908.8,3907.5,0.3352]
[1758848007009,0.78164,3908.8,3907.9,0.3352]
[1758848007201,0.1272,3909.5,3907.9,0.79552]
[1758848007403,0.4602,3909.1,3908.1,0.3352]
[1758848007605,0.46024,3908.8,3908.1,0.3352]
[1758848007807,0.3214,3909.4,3908.1,0.3352]
[1758848007998,0.46025,3908.7,3908.1,0.3352]
[1758848008701,0.3214,3909.1,3908.1,0.6442]
[1758848008908,0.3214,3909.1,3908.1,1.1045]
[1758848009113,0.3214,3909.6,3908.5,0.3352]
[1758848009305,0.1272,3910.2,3908.7,0.46023]
[1758848009499,0.1272,3910.2,3909.0,0.79539]
[1758848009500,0.46011,3909.9,3909.0,0.79539]
[1758848009701,0.78148,3910.1,3909.0,0.3352]
[1758848010101,0.4601,3910.0,3909.1,0.46018]
[1758848010303,0.78148,3910.1,3909.1,0.46018]
[1758848010804,0.3214,3910.1,3909.5,0.3257]
[1758848011010,0.3353,3910.7,3909.5,0.3257]
[1758848011413,0.46006,3910.3,3909.5,0.3257]
[1758848012208,0.46008,3910.1,3909.5,0.3257]
[1758848012401,0.0135,3910.2,3909.5,0.3257]
[1758848012706,0.0135,3910.2,3909.6,0.3345]
[1758848013010,0.0135,3910.2,3909.7,0.46012]
[1758848013199,0.1272,3911.4,3909.7,0.46012]
[1758848013200,1.82992077,3912.1,3910.9,0.3257]
[1758848013408,0.45979,3912.5,3911.5,0.3257]
[1758848013702,0.81242077,3914.2,3913.8,0.1365]
[1758848013902,0.022,3917.9,3913.8,0.1365]
[1758848013903,3.31649416,3917.4,3914.7,11.48846]
[1758848014103,0.1346,3915.8,3915.3,0.67655606]
[1758848014306,0.1346,3915.8,3915.4,42.17427033]
[1758848014507,0.1346,3916.2,3915.6,0.67369321]
[1758848014708,0.1346,3915.8,3915.6,0.45943]
[1758848015395,0.1346,3916.2,3916.1,0.45937]
[1758848015804,0.4699,3916.2,3915.7,0.45941]
[1758848016007,0.4699,3915.8,3915.7,0.45941]
[1758848016209,0.1346,3915.8,3915.7,0.45941]
[1758848016411,0.1346,3916.2,3916.1,0.45937]
[1758848016805,0.1346,3916.8,3916.7,0.4593]
[1758848017004,0.1346,3916.8,3915.5,1.1486]
[1758848017005,0.3353,3916.7,3915.5,0.71009271]
[1758848017205,0.3353,3916.7,3916.0,0.45937]
[1758848017514,0.1346,3916.8,3916.2,0.45936]
[1758848017810,0.3353,3916.7,3916.3,0.313]
[1758848018218,0.1346,3916.8,3916.3,0.313]
[1758848018607,0.3353,3916.7,3916.6,0.45931]
[1758848018909,0.1346,3916.8,3916.4,0.45933]
[1758848019109,0.1346,3916.8,3916.1,40.8]
[1758848019110,0.1346,3916.8,3916.1,41.25937]
[1758848019309,0.1346,3916.8,3916.1,40.8]
[1758848019511,14.71196596,3916.2,3916.1,40.8]
[1758848019702,20.11434834,3916.2,3915.2,0.45947]
[1758848020015,0.5939,3916.8,3914.3,11.48959]
[1758848020016,0.3353,3915.7,3915.1,39.872]
[1758848020202,0.3353,3915.7,3913.5,6.67694607]
[1758848020203,0.3353,3915.5,3915.2,40.8]
[1758848020407,0.3353,3915.3,3915.2,40.8]
[1758848020612,5.73768238,3915.3,3915.2,41.113]
[1758848020911,0.1346,3915.1,3914.6,0.45954]
[1758848021314,14.37666596,3915.0,3914.7,40.8]
[1758848021506,0.4699,3914.4,3914.3,0.45957]
[1758848021713,0.4699,3914.4,3914.3,0.77157]
[1758848022506,19.91364834,3914.4,3912.4,1.14952]
[1758848022710,14.37666596,3914.2,3913.9,0.45963]
[1758848022917,14.37666596,3914.2,3912.4,1.14952]
[1758848022918,0.1346,3913.7,3913.6,0.45966]
[1758848023219,0.1346,3913.0,3912.9,40.32275]
[1758848023517,5.53698238,3913.0,3912.9,0.312]
[1758848024410,5.87228238,3913.0,3912.8,0.50687303]
[1758848024615,5.53698238,3913.0,3912.9,0.312]
[1758848025112,19.91364834,3913.0,3912.9,0.311]
[1758848025610,20.24894834,3913.0,3912.9,0.311]
[1758848025811,19.91364834,3913.0,3912.6,0.45978]
[1758848026117,14.71196596,3912.7,3912.6,0.45978]
[1758848026415,20.11434834,3912.7,3912.6,0.311]
[1758848026615,0.1346,3913.7,3912.6,46.111]
[1758848026816,0.1346,3915.8,3914.4,1.14892]
[1758848027007,0.1346,3915.8,3915.7,0.45942]
[1758848027207,0.1346,3916.5,3915.8,0.4594]
[1758848027414,0.1346,3916.5,3915.9,40.8]
[1758848027613,0.1346,3916.5,3914.8,1.14879]
[1758848027916,0.1346,3916.0,3915.9,0.45939]
[1758848028122,0.1346,3916.0,3915.9,41.57239]
[1758848028614,0.1346,3916.0,3915.9,40.8]
[1758848028807,5.1346,3916.0,3915.3,0.45945]
[1758848029008,0.1346,3915.2,3914.7,0.45952]
[1758848029512,0.1346,3915.2,3914.9,0.45951]
[1758848029907,0.1346,3915.2,3915.0,0.313]
[1758848030107,0.1346,3916.0,3915.1,11.48721]
[1758848030409,0.1346,3917.6,3917.1,0.45925]
[1758848030718,0.1346,3917.6,3917.2,0.314]
[1758848031015,0.1346,3916.8,3916.7,0.4593]
[1758848031220,0.1346,3917.6,3916.1,12.63263]
[1758848031419,0.1346,3917.2,3916.6,0.4593]
[1758848031810,0.1346,3917.2,3916.7,0.315]
[1758848032118,0.1346,3917.2,3916.5,0.45932]
[1758848032318,0.1346,3917.2,3916.6,0.315]
[1758848032813,0.1346,3917.2,3916.5,0.45932]
[1758848032814,0.1346,3916.5,3915.9,0.45939]
[1758848033020,0.1346,3916.5,3916.0,0.314]
[1758848033206,0.1346,3916.5,3916.1,0.45937]
[1758848033412,0.1346,3916.5,3916.2,0.77336]
[1758848033707,0.1346,3916.5,3915.2,1.14869]
[1758848033907,0.1346,3915.8,3914.0,1.14904]
[1758848034113,0.1346,3915.8,3914.2,11.48987]
[1758848034318,0.1346,3915.8,3915.0,0.4595]
[1758848034319,0.1346,3915.1,3915.0,0.4595]
[1758848034823,0.1346,3915.1,3914.5,0.73237736]
[1758848035013,0.1346,3914.4,3914.2,0.73237736]
[1758848035214,0.1346,3914.4,3914.0,0.67369321]
[1758848035215,0.1346,3914.4,3914.3,0.314]
[1758848035817,0.1346,3914.4,3913.8,0.04839971]
[1758848036021,0.1346,3914.4,3913.9,0.313]
[1758848037019,0.1346,3914.4,3913.8,0.04839971]
[1758848037223,0.59418,3914.4,3913.9,0.313]
[1758848037412,0.45959,3914.3,3913.8,0.04839971]
[1758848037814,0.1346,3914.4,3913.8,0.36139971]
[1758848037815,1e-05,3914.4,3913.8,0.36139971]
[1758848038116,0.1346,3914.4,3914.3,0.45958]
[1758848038419,0.1346,3914.4,3914.3,41.99746948]
[1758848038723,0.1346,3914.4,3914.3,42.31246948]
[1758848039421,0.1346,3915.1,3915.0,0.4595]
[1758848039612,0.1346,3915.1,3915.0,1.51238948]
[1758848040018,0.6027,3915.1,3915.0,2.40681993]
[1758848040215,0.6027,3915.1,3915.0,0.73788948]
[1758848040428,0.6027,3915.1,3915.0,1.94876695]
[1758848040616,0.6027,3915.1,3915.0,1.94776695]
[1758848040816,0.6027,3915.1,3915.0,1.72397264]
[1758848041216,0.6027,3915.1,3915.0,1.05188948]
[1758848041417,5.6027,3915.1,3915.0,0.73788948]
[1758848041617,5.6027,3915.1,3915.0,1e-08]
[1758848041813,0.1346,3916.5,3915.0,85.64400001]
[1758848042015,0.1346,3916.5,3915.4,0.67356559]
[1758848042215,0.1346,3916.5,3916.4,0.17826559]
[1758848042420,0.45936,3916.2,3915.9,0.89785169]
[1758848042618,0.1345,3915.8,3915.3,0.89785169]
[1758848042812,0.1345,3915.8,3914.2,2.48740735]
[1758848042813,0.1345,3915.8,3914.9,0.89785169]
[1758848043016,0.1345,3915.1,3915.0,0.319]
[1758848043221,0.1345,3915.1,3914.8,1.34164568]
[1758848043423,0.1345,3915.1,3914.9,0.90389794]
[1758848043621,0.1345,3915.1,3914.8,0.90389794]
[1758848044020,0.1346,3916.5,3914.5,0.319]
[1758848044021,0.4802,3917.0,3915.3,11.48672]
[1758848044224,0.4802,3916.9,3916.1,0.45937]
[1758848044414,0.4802,3916.9,3915.8,0.1966]
[1758848044415,0.1346,3917.2,3916.7,0.59203]
[1758848044615,0.1346,3917.2,3915.9,1.84280588]
[1758848044616,0.1346,3917.2,3916.9,0.45927]
[1758848044822,0.4802,3917.1,3917.0,0.45926]
[1758848045222,0.1346,3917.2,3916.8,1.36318794]
[1758848045422,0.4802,3917.1,3916.9,0.45928]
[1758848045621,0.4802,3917.1,3917.0,0.90389794]
[1758848046521,0.1869,3920.0,3918.3,0.4569]
[1758848046724,0.1869,3920.0,3918.9,0.45904]
[1758848047026,0.1869,3920.0,3918.7,0.90051117]
[1758848047222,4.6869,3920.0,3918.4,0.90051117]
[1758848047525,4.6869,3920.0,3918.3,0.322]
[1758848047526,0.45895,3919.7,3918.3,0.322]
[1758848047726,0.45895,3919.7,3918.4,0.4591]
[1758848048030,0.1869,3920.0,3918.3,0.322]
[1758848048229,0.2969,3920.0,3918.5,0.90051117]
[1758848048528,0.2969,3920.0,3917.8,2.25792235]
[1758848048529,0.4802,3919.2,3918.0,0.45914]
[1758848048828,0.4802,3919.2,3918.1,0.322]
[1758848049028,0.4802,3919.2,3918.4,0.08983]
[1758848049220,0.4802,3919.9,3918.9,0.45904]
[1758848049425,0.4802,3919.9,3919.0,0.08983]
[1758848050233,0.4802,3919.9,3919.3,0.45899]
[1758848050423,0.4802,3919.9,3919.5,0.5488]
[1758848050626,0.8319831,3920.7,3918.8,1.23795]
[1758848050627,0.45886,3920.5,3918.8,1.23795]
[1758848050826,0.4802,3920.4,3919.1,0.08983]
[1758848051018,6.11,3920.4,3918.4,0.45909]
[1758848051321,0.4802,3919.8,3918.6,0.45908]
[1758848051527,0.4802,3919.8,3918.6,0.54891]
[1758848051830,0.4802,3919.8,3918.0,0.90051117]
[1758848051831,0.4802,3919.2,3918.0,0.321]
[1758848052021,0.45913,3918.2,3917.8,0.90051117]
[1758848052221,0.45913,3918.2,3916.6,0.32]
[1758848052430,0.4802,3918.1,3917.2,0.08983]
[1758848052825,0.45915,3918.0,3917.2,0.08983]
[1758848053021,0.45917,3917.8,3917.2,0.08983]
[1758848053232,0.45917,3917.8,3916.7,0.4569]
[1758848053429,0.4592,3917.6,3917.3,0.08983]
[1758848053736,0.4802,3918.1,3916.7,0.4569]
[1758848054033,0.1869,3918.6,3917.3,0.4569]
[1758848054233,0.1869,3918.6,3918.0,0.08983]
[1758848054425,0.1869,3918.6,3918.1,0.08983]
[1758848054625,12.62131,3919.7,3917.2,0.45923]
[1758848054626,0.4802,3919.7,3917.9,0.1047]
[1758848054833,0.459,3919.3,3918.6,0.4569]
[1758848055137,0.4802,3919.4,3918.6,0.4569]
[1758848055327,0.93918,3919.4,3919.2,0.08983]
[1758848055529,0.4802,3919.3,3919.2,0.08983]
[1758848055729,39.824,3922.1,3919.2,0.08983]
[1758848055730,1.12602,3920.0,3919.2,0.08983]
[1758848056038,1.12602,3920.0,3919.3,0.08983]
[1758848056039,0.6671,3920.0,3919.3,0.08983]
[1758848056327,12.61505,3921.7,3919.5,0.91587]
[1758848056328,0.45886,3920.5,3919.5,0.91587]
[1758848056532,0.4802,3920.5,3919.7,0.08983]
[1758848057036,0.45889,3920.2,3919.7,0.08983]
[1758848057224,0.45887,3920.4,3919.7,0.08983]